[Event "Titled Tuesday Blitz August 08 Late 2023"]
[White "Dragomirescu, Robin-Alexandru"]
[Black "Hua, Lefong"]
[WhiteFideId "1213849"]
[BlackFideId "2602253"]
[WhiteElo "2518"]
[BlackElo "2649"]
[Result "1/2-1/2"]
[Round "3"]
[TimeControl "180+1"]
[Date "2023.08.08"]
[WhiteClock "0:01:41"]
[BlackClock "0:01:35"]
[Board "53"]

1. b3 {[%clk 0:03:00]}  Nf6 {[%clk 0:03:00]} 2. Bb2 {[%clk 0:03:00]}  g6 {[%clk 0:03:00]} 3. Bxf6 {[%clk 0:03:00]}  exf6 {[%clk 0:03:01]} 4. c4 {[%clk 0:02:59]}  b6 {[%clk 0:03:01]} 5. Nc3 {[%clk 0:02:59]}  Bg7 {[%clk 0:03:01]} 6. d4 {[%clk 0:02:58]}  O-O {[%clk 0:03:00]} 7. g3 {[%clk 0:02:58]}  Bb7 {[%clk 0:03:00]} 8. d5 {[%clk 0:02:58]}  f5 {[%clk 0:03:00]} 9. Rc1 {[%clk 0:02:57]}  d6 {[%clk 0:02:59]} 10. Bg2 {[%clk 0:02:57]}  Nd7 {[%clk 0:03:00]} 11. Nf3 {[%clk 0:02:54]}  Re8 {[%clk 0:02:56]} 12. O-O {[%clk 0:02:53]}  Nf6 {[%clk 0:02:55]} 13. Nd4 {[%clk 0:02:52]}  Ne4 {[%clk 0:02:51]} 14. e3 {[%clk 0:02:48]}  Nxc3 {[%clk 0:02:47]} 15. Rxc3 {[%clk 0:02:48]}  h5 {[%clk 0:02:46]} 16. h4 {[%clk 0:02:48]}  Qf6 {[%clk 0:02:33]} 17. Rd3 {[%clk 0:02:34]}  Re7 {[%clk 0:02:30]} 18. b4 {[%clk 0:02:30]}  a5 {[%clk 0:02:28]} 19. a3 {[%clk 0:02:30]}  axb4 {[%clk 0:02:24]} 20. axb4 {[%clk 0:02:31]}  Ree8 {[%clk 0:02:23]} 21. Qc2 {[%clk 0:02:17]}  Qe7 {[%clk 0:02:19]} 22. Rc1 {[%clk 0:02:10]}  Ra6 {[%clk 0:02:14]} 23. c5 {[%clk 0:02:06]}  bxc5 {[%clk 0:02:14]} 24. bxc5 {[%clk 0:02:07]}  Rea8 {[%clk 0:01:59]} 25. cxd6 {[%clk 0:02:06]}  cxd6 {[%clk 0:01:58]} 26. Qc7 {[%clk 0:02:07]}  Qxc7 {[%clk 0:01:44]} 27. Rxc7 {[%clk 0:02:05]}  Ra1+ {[%clk 0:01:45]} 28. Kh2 {[%clk 0:02:05]}  Ba6 {[%clk 0:01:45]} 29. Rd2 {[%clk 0:01:46]}  Bxd4 {[%clk 0:01:35]} 30. Rxd4 {[%clk 0:01:45]}  Ra2 {[%clk 0:01:34]} 31. Kg1 {[%clk 0:01:42]}  Ra1+ {[%clk 0:01:34]} 32. Kh2 {[%clk 0:01:41]}  Ra2 {[%clk 0:01:34]} 33. Kg1 {[%clk 0:01:41]}  Ra1+ {[%clk 0:01:35]} 34. Kh2 {[%clk 0:01:41]} 1/2-1/2


[Site "https://www.chess.com"]

[Event "Titled Tuesday Blitz August 08 Late 2023"]
[White "Yu, Jennifer"]
[Black "Zhigalko, Sergei"]
[WhiteFideId "2078341"]
[BlackFideId "13502956"]
[WhiteElo "2503"]
[BlackElo "2882"]
[Result "0-1"]
[Round "3"]
[TimeControl "180+1"]
[Date "2023.08.08"]
[WhiteClock "0:00:01"]
[BlackClock "0:00:03"]
[Board "57"]

1. c4 {[%clk 0:03:00]}  e5 {[%clk 0:02:57]} 2. Nc3 {[%clk 0:02:59]}  Nf6 {[%clk 0:02:58]} 3. g3 {[%clk 0:02:59]}  Bb4 {[%clk 0:02:51]} 4. Bg2 {[%clk 0:02:59]}  O-O {[%clk 0:02:52]} 5. Nd5 {[%clk 0:02:59]}  Bc5 {[%clk 0:02:52]} 6. d3 {[%clk 0:02:57]}  Nxd5 {[%clk 0:02:46]} 7. cxd5 {[%clk 0:02:57]}  d6 {[%clk 0:02:45]} 8. Nf3 {[%clk 0:02:58]}  h6 {[%clk 0:02:42]} 9. O-O {[%clk 0:02:58]}  Nd7 {[%clk 0:02:43]} 10. e4 {[%clk 0:02:57]}  a5 {[%clk 0:02:36]} 11. b3 {[%clk 0:02:53]}  Bb6 {[%clk 0:02:28]} 12. Bb2 {[%clk 0:02:53]}  Nc5 {[%clk 0:02:28]} 13. Re1 {[%clk 0:02:52]}  f5 {[%clk 0:02:27]} 14. Rc1 {[%clk 0:02:37]}  fxe4 {[%clk 0:02:21]} 15. dxe4 {[%clk 0:02:38]}  Bg4 {[%clk 0:02:20]} 16. h3 {[%clk 0:02:39]}  Bh5 {[%clk 0:02:11]} 17. Rc3 {[%clk 0:02:37]}  Qf6 {[%clk 0:02:08]} 18. Qc2 {[%clk 0:02:29]}  Rf7 {[%clk 0:02:03]} 19. Bc1 {[%clk 0:02:02]}  Raf8 {[%clk 0:02:00]} 20. a3 {[%clk 0:01:34]}  Qd8 {[%clk 0:01:44]} 21. b4 {[%clk 0:01:32]}  Bxf3 {[%clk 0:01:39]} 22. bxc5 {[%clk 0:01:19]}  Bxc5 {[%clk 0:01:40]} 23. Be3 {[%clk 0:01:10]}  b6 {[%clk 0:01:14]} 24. Bxc5 {[%clk 0:01:01]}  bxc5 {[%clk 0:01:01]} 25. Bxf3 {[%clk 0:00:50]}  Rxf3 {[%clk 0:01:01]} 26. Rxf3 {[%clk 0:00:51]}  Rxf3 {[%clk 0:01:01]} 27. Qa4 {[%clk 0:00:52]}  Qa8 {[%clk 0:00:15]} 28. Rb1 {[%clk 0:00:50]}  Kh7 {[%clk 0:00:11]} 29. Qd7 {[%clk 0:00:36]}  Qf8 {[%clk 0:00:10]} 30. Rb2 {[%clk 0:00:27]}  Rxa3 {[%clk 0:00:10]} 31. Qxc7 {[%clk 0:00:12]}  Qf3 {[%clk 0:00:09]} 32. Rb1 {[%clk 0:00:09]}  Qxe4 {[%clk 0:00:09]} 33. Rd1 {[%clk 0:00:05]}  Qf3 {[%clk 0:00:07]} 34. Rb1 {[%clk 0:00:03]}  Qxd5 {[%clk 0:00:04]} 35. Qc8 {[%clk 0:00:03]}  Qd3 {[%clk 0:00:03]} 36. Rb8 {[%clk 0:00:01]}  Ra1+ {[%clk 0:00:03]} 37. Kg2 {[%clk 0:00:01]}  Qe4+ {[%clk 0:00:03]} 38. f3 {[%clk 0:00:01]}  Qe2# {[%clk 0:00:03]} 0-1


[Site "https://www.chess.com"]

[Event "Titled Tuesday Blitz August 08 Late 2023"]
[White "Khanin, Semen"]
[Black "Michalczak, Thomas"]
[WhiteFideId "4111990"]
[BlackFideId "4622634"]
[WhiteElo "2879"]
[BlackElo "2502"]
[Result "1-0"]
[Round "3"]
[TimeControl "180+1"]
[Date "2023.08.08"]
[WhiteClock "0:01:33"]
[BlackClock "0:00:13"]
[Board "58"]

1. e4 {[%clk 0:03:00]}  e5 {[%clk 0:02:58]} 2. Nf3 {[%clk 0:02:59]}  Nc6 {[%clk 0:02:58]} 3. Bb5 {[%clk 0:02:58]}  a6 {[%clk 0:02:59]} 4. Ba4 {[%clk 0:02:59]}  Nf6 {[%clk 0:02:59]} 5. O-O {[%clk 0:02:58]}  Be7 {[%clk 0:02:58]} 6. Bxc6 {[%clk 0:02:58]}  dxc6 {[%clk 0:02:58]} 7. Re1 {[%clk 0:02:59]}  Nd7 {[%clk 0:02:54]} 8. c3 {[%clk 0:02:59]}  c5 {[%clk 0:02:53]} 9. d4 {[%clk 0:02:58]}  cxd4 {[%clk 0:02:53]} 10. cxd4 {[%clk 0:02:59]}  Bd6 {[%clk 0:02:50]} 11. Nc3 {[%clk 0:02:50]}  O-O {[%clk 0:02:46]} 12. Bg5 {[%clk 0:02:47]}  f6 {[%clk 0:02:45]} 13. Be3 {[%clk 0:02:47]}  Kh8 {[%clk 0:02:43]} 14. Rc1 {[%clk 0:02:44]}  c6 {[%clk 0:02:31]} 15. h3 {[%clk 0:02:40]}  Qe7 {[%clk 0:02:30]} 16. d5 {[%clk 0:02:37]}  c5 {[%clk 0:02:26]} 17. a4 {[%clk 0:02:37]}  Rb8 {[%clk 0:02:25]} 18. Qd3 {[%clk 0:02:35]}  b6 {[%clk 0:02:20]} 19. Nd2 {[%clk 0:02:32]}  Re8 {[%clk 0:02:18]} 20. Nc4 {[%clk 0:02:30]}  b5 {[%clk 0:02:06]} 21. Na5 {[%clk 0:02:23]}  c4 {[%clk 0:02:02]} 22. Qe2 {[%clk 0:02:21]}  Qf7 {[%clk 0:01:20]} 23. Nc6 {[%clk 0:02:19]}  Rb7 {[%clk 0:01:21]} 24. axb5 {[%clk 0:02:19]}  axb5 {[%clk 0:01:21]} 25. Ra1 {[%clk 0:02:19]}  Bc5 {[%clk 0:01:15]} 26. Ra8 {[%clk 0:02:15]}  h6 {[%clk 0:01:01]} 27. Rea1 {[%clk 0:02:13]}  Bxe3 {[%clk 0:00:57]} 28. Qxe3 {[%clk 0:02:13]}  Kh7 {[%clk 0:00:55]} 29. R1a5 {[%clk 0:02:07]}  b4 {[%clk 0:00:53]} 30. Nb5 {[%clk 0:02:06]}  Qf8 {[%clk 0:00:32]} 31. d6 {[%clk 0:02:07]}  Rxb5 {[%clk 0:00:28]} 32. Rxb5 {[%clk 0:02:04]}  Qxd6 {[%clk 0:00:28]} 33. Nxb4 {[%clk 0:02:03]}  Qd4 {[%clk 0:00:20]} 34. Qxd4 {[%clk 0:02:01]}  exd4 {[%clk 0:00:21]} 35. f3 {[%clk 0:01:43]}  d3 {[%clk 0:00:21]} 36. Kf2 {[%clk 0:01:44]}  Ne5 {[%clk 0:00:19]} 37. Ke3 {[%clk 0:01:38]}  Bd7 {[%clk 0:00:18]} 38. Rxe8 {[%clk 0:01:37]}  Bxe8 {[%clk 0:00:19]} 39. Rc5 {[%clk 0:01:34]}  Ba4 {[%clk 0:00:19]} 40. f4 {[%clk 0:01:34]}  d2 {[%clk 0:00:13]} 41. Kxd2 {[%clk 0:01:33]}  Nd3 {[%clk 0:00:13]} 42. Nxd3 {[%clk 0:01:33]}  cxd3 {[%clk 0:00:13]} 43. Kxd3 {[%clk 0:01:33]} 1-0


[Site "https://www.chess.com"]

[Event "Titled Tuesday Blitz August 08 Late 2023"]
[White "Remolar Gallen, Jose"]
[Black "Henriquez Villagra, Cristobal"]
[WhiteFideId "2215187"]
[BlackFideId "3409350"]
[WhiteElo "2497"]
[BlackElo "2848"]
[Result "0-1"]
[Round "3"]
[TimeControl "180+1"]
[Date "2023.08.08"]
[WhiteClock "0:00:00"]
[BlackClock "0:00:09"]
[Board "60"]

1. e4 {[%clk 0:03:00]}  d6 {[%clk 0:03:00]} 2. d4 {[%clk 0:02:58]}  Nf6 {[%clk 0:02:59]} 3. Nc3 {[%clk 0:02:58]}  e5 {[%clk 0:02:57]} 4. Nf3 {[%clk 0:02:59]}  Nbd7 {[%clk 0:02:56]} 5. g4 {[%clk 0:02:59]}  h6 {[%clk 0:02:54]} 6. Rg1 {[%clk 0:02:57]}  Be7 {[%clk 0:02:51]} 7. Bc4 {[%clk 0:02:52]}  c6 {[%clk 0:02:49]} 8. Bb3 {[%clk 0:02:46]}  b5 {[%clk 0:02:23]} 9. g5 {[%clk 0:02:37]}  hxg5 {[%clk 0:02:23]} 10. Nxg5 {[%clk 0:02:38]}  Rf8 {[%clk 0:02:21]} 11. Be3 {[%clk 0:02:07]}  Bb7 {[%clk 0:02:05]} 12. dxe5 {[%clk 0:01:22]}  dxe5 {[%clk 0:02:00]} 13. Qf3 {[%clk 0:01:13]}  Nc5 {[%clk 0:01:56]} 14. Rd1 {[%clk 0:01:08]}  Qc7 {[%clk 0:01:56]} 15. Bxc5 {[%clk 0:00:59]}  Bxc5 {[%clk 0:01:55]} 16. a4 {[%clk 0:00:52]}  a6 {[%clk 0:01:50]} 17. Ne2 {[%clk 0:00:42]}  Rd8 {[%clk 0:01:50]} 18. Rxd8+ {[%clk 0:00:41]}  Qxd8 {[%clk 0:01:51]} 19. Ng3 {[%clk 0:00:40]}  Bc8 {[%clk 0:01:47]} 20. axb5 {[%clk 0:00:39]}  Bg4 {[%clk 0:01:29]} 21. Qd3 {[%clk 0:00:37]}  Qxd3 {[%clk 0:01:28]} 22. cxd3 {[%clk 0:00:38]}  axb5 {[%clk 0:01:28]} 23. Nf5 {[%clk 0:00:27]}  Bxf5 {[%clk 0:01:27]} 24. exf5 {[%clk 0:00:28]}  Bd4 {[%clk 0:01:27]} 25. Ne4 {[%clk 0:00:27]}  Nxe4 {[%clk 0:00:53]} 26. dxe4 {[%clk 0:00:27]}  c5 {[%clk 0:00:53]} 27. Bd5 {[%clk 0:00:25]}  g6 {[%clk 0:00:53]} 28. Bc6+ {[%clk 0:00:23]}  Ke7 {[%clk 0:00:53]} 29. Bxb5 {[%clk 0:00:23]}  gxf5 {[%clk 0:00:51]} 30. exf5 {[%clk 0:00:24]}  Rb8 {[%clk 0:00:51]} 31. Bc4 {[%clk 0:00:23]}  Rxb2 {[%clk 0:00:52]} 32. Rg7 {[%clk 0:00:23]}  Kf6 {[%clk 0:00:33]} 33. Rxf7+ {[%clk 0:00:23]}  Kg5 {[%clk 0:00:33]} 34. Rg7+ {[%clk 0:00:07]}  Kxf5 {[%clk 0:00:33]} 35. Rf7+ {[%clk 0:00:07]}  Kg5 {[%clk 0:00:32]} 36. Kf1 {[%clk 0:00:07]}  Rc2 {[%clk 0:00:31]} 37. Bd5 {[%clk 0:00:07]}  c4 {[%clk 0:00:30]} 38. Kg2 {[%clk 0:00:06]}  c3 {[%clk 0:00:29]} 39. Kg3 {[%clk 0:00:06]}  Rxf2 {[%clk 0:00:23]} 40. Rc7 {[%clk 0:00:02]}  Rf4 {[%clk 0:00:21]} 41. h4+ {[%clk 0:00:00]}  Kh6 {[%clk 0:00:09]} 0-1


[Site "https://www.chess.com"]

[Event "Titled Tuesday Blitz August 08 Late 2023"]
[White "Yang, Kevin"]
[Black "Salinas Herrera, Pablo"]
[WhiteFideId "30908485"]
[BlackFideId "3407128"]
[WhiteElo "2495"]
[BlackElo "2844"]
[Result "0-1"]
[Round "3"]
[TimeControl "180+1"]
[Date "2023.08.08"]
[WhiteClock "0:00:04"]
[BlackClock "0:01:09"]
[Board "62"]

1. d4 {[%clk 0:03:00]}  Nf6 {[%clk 0:02:58]} 2. Nc3 {[%clk 0:02:55]}  c5 {[%clk 0:02:55]} 3. d5 {[%clk 0:02:54]}  e5 {[%clk 0:02:52]} 4. e4 {[%clk 0:02:47]}  d6 {[%clk 0:02:51]} 5. a4 {[%clk 0:02:45]}  g6 {[%clk 0:02:51]} 6. Nf3 {[%clk 0:02:42]}  Bg7 {[%clk 0:02:52]} 7. Be2 {[%clk 0:02:41]}  O-O {[%clk 0:02:51]} 8. O-O {[%clk 0:02:40]}  Nh5 {[%clk 0:02:52]} 9. g3 {[%clk 0:02:01]}  h6 {[%clk 0:02:50]} 10. Ne1 {[%clk 0:01:58]}  Nf6 {[%clk 0:02:48]} 11. Ng2 {[%clk 0:01:57]}  Nbd7 {[%clk 0:02:48]} 12. f4 {[%clk 0:01:49]}  exf4 {[%clk 0:02:49]} 13. gxf4 {[%clk 0:01:46]}  Re8 {[%clk 0:02:47]} 14. Bf3 {[%clk 0:01:45]}  a6 {[%clk 0:02:40]} 15. Be3 {[%clk 0:01:42]}  Rb8 {[%clk 0:02:37]} 16. a5 {[%clk 0:01:40]}  b5 {[%clk 0:02:38]} 17. axb6 {[%clk 0:01:40]}  Nxb6 {[%clk 0:02:39]} 18. b3 {[%clk 0:01:25]}  h5 {[%clk 0:02:38]} 19. Qd3 {[%clk 0:01:07]}  Ng4 {[%clk 0:02:31]} 20. Bxg4 {[%clk 0:01:06]}  Bxg4 {[%clk 0:02:32]} 21. Rxa6 {[%clk 0:01:00]}  Qe7 {[%clk 0:02:05]} 22. Nb5 {[%clk 0:00:38]}  Nc8 {[%clk 0:01:57]} 23. e5 {[%clk 0:00:25]}  dxe5 {[%clk 0:01:54]} 24. d6 {[%clk 0:00:24]}  Qb7 {[%clk 0:01:54]} 25. Ra5 {[%clk 0:00:17]}  Bh3 {[%clk 0:01:50]} 26. Rf2 {[%clk 0:00:14]}  Bf5 {[%clk 0:01:43]} 27. Qd2 {[%clk 0:00:12]}  exf4 {[%clk 0:01:35]} 28. Bxf4 {[%clk 0:00:10]}  Qd7 {[%clk 0:01:34]} 29. c4 {[%clk 0:00:09]}  Re4 {[%clk 0:01:33]} 30. Be3 {[%clk 0:00:08]}  h4 {[%clk 0:01:28]} 31. Bxc5 {[%clk 0:00:08]}  h3 {[%clk 0:01:28]} 32. Ne3 {[%clk 0:00:08]}  Be6 {[%clk 0:01:26]} 33. Nd5 {[%clk 0:00:07]}  Bxd5 {[%clk 0:01:26]} 34. Qxd5 {[%clk 0:00:05]}  Qg4+ {[%clk 0:01:26]} 35. Kf1 {[%clk 0:00:05]}  Re5 {[%clk 0:01:09]} 36. Qxf7+ {[%clk 0:00:04]}  Kh7 {[%clk 0:01:10]} 37. d7 {[%clk 0:00:04]}  Qd1# {[%clk 0:01:09]} 0-1


[Site "https://www.chess.com"]

[Event "Titled Tuesday Blitz August 08 Late 2023"]
[White "Womacka, Mathias"]
[Black "Donchenko, Alexander"]
[WhiteFideId "4611390"]
[BlackFideId "24603295"]
[WhiteElo "2494"]
[BlackElo "2833"]
[Result "0-1"]
[Round "3"]
[TimeControl "180+1"]
[Date "2023.08.08"]
[WhiteClock "0:00:11"]
[BlackClock "0:00:04"]
[Board "63"]

1. e4 {[%clk 0:03:00]}  c6 {[%clk 0:03:00]} 2. d4 {[%clk 0:02:55]}  d5 {[%clk 0:03:00]} 3. Nd2 {[%clk 0:02:55]}  dxe4 {[%clk 0:03:01]} 4. Nxe4 {[%clk 0:02:56]}  Nf6 {[%clk 0:03:01]} 5. Nxf6+ {[%clk 0:02:56]}  exf6 {[%clk 0:03:02]} 6. Bc4 {[%clk 0:02:55]}  Bd6 {[%clk 0:03:00]} 7. Qe2+ {[%clk 0:02:54]}  Qe7 {[%clk 0:03:01]} 8. Qxe7+ {[%clk 0:02:54]}  Kxe7 {[%clk 0:03:02]} 9. Ne2 {[%clk 0:02:53]}  Rd8 {[%clk 0:02:59]} 10. c3 {[%clk 0:02:45]}  Nd7 {[%clk 0:02:57]} 11. Bf4 {[%clk 0:02:44]}  Nb6 {[%clk 0:02:54]} 12. Bd3 {[%clk 0:02:40]}  Bxf4 {[%clk 0:02:41]} 13. Nxf4 {[%clk 0:02:37]}  g5 {[%clk 0:02:41]} 14. Nh5 {[%clk 0:02:34]}  c5 {[%clk 0:02:40]} 15. dxc5 {[%clk 0:02:09]}  Na4 {[%clk 0:02:38]} 16. O-O-O {[%clk 0:02:05]}  Nxc5 {[%clk 0:02:33]} 17. Rhe1+ {[%clk 0:01:58]}  Be6 {[%clk 0:02:28]} 18. Bc2 {[%clk 0:01:46]}  Rxd1+ {[%clk 0:02:26]} 19. Rxd1 {[%clk 0:01:39]}  Bxa2 {[%clk 0:02:20]} 20. Ng7 {[%clk 0:01:25]}  Be6 {[%clk 0:02:09]} 21. Bxh7 {[%clk 0:01:17]}  Rh8 {[%clk 0:02:07]} 22. Nf5+ {[%clk 0:01:15]}  Ke8 {[%clk 0:01:44]} 23. Nd6+ {[%clk 0:01:13]}  Ke7 {[%clk 0:01:38]} 24. Bc2 {[%clk 0:01:08]}  Rxh2 {[%clk 0:01:36]} 25. b4 {[%clk 0:01:07]}  Nd7 {[%clk 0:01:33]} 26. Be4 {[%clk 0:01:02]}  b6 {[%clk 0:01:29]} 27. Nc8+ {[%clk 0:01:00]}  Kf8 {[%clk 0:01:26]} 28. Nxa7 {[%clk 0:01:00]}  f5 {[%clk 0:01:22]} 29. Bc6 {[%clk 0:00:58]}  Ne5 {[%clk 0:01:22]} 30. Bd5 {[%clk 0:00:54]}  Bxd5 {[%clk 0:01:13]} 31. Rxd5 {[%clk 0:00:55]}  f6 {[%clk 0:01:13]} 32. Nc8 {[%clk 0:00:50]}  Rxg2 {[%clk 0:01:11]} 33. Nxb6 {[%clk 0:00:49]}  Rxf2 {[%clk 0:01:11]} 34. b5 {[%clk 0:00:49]}  g4 {[%clk 0:01:11]} 35. Rd1 {[%clk 0:00:40]}  g3 {[%clk 0:01:10]} 36. Nd5 {[%clk 0:00:40]}  g2 {[%clk 0:01:06]} 37. Ne3 {[%clk 0:00:38]}  f4 {[%clk 0:01:00]} 38. Nxg2 {[%clk 0:00:37]}  Rxg2 {[%clk 0:01:00]} 39. b6 {[%clk 0:00:37]}  Rg7 {[%clk 0:00:48]} 40. Rd8+ {[%clk 0:00:35]}  Ke7 {[%clk 0:00:39]} 41. b7 {[%clk 0:00:35]}  Kxd8 {[%clk 0:00:07]} 42. b8=Q+ {[%clk 0:00:34]}  Ke7 {[%clk 0:00:08]} 43. Qc7+ {[%clk 0:00:31]}  Kf8 {[%clk 0:00:08]} 44. Qd6+ {[%clk 0:00:29]}  Kf7 {[%clk 0:00:09]} 45. Qd5+ {[%clk 0:00:25]}  Kg6 {[%clk 0:00:09]} 46. Qe4+ {[%clk 0:00:19]}  Kg5 {[%clk 0:00:09]} 47. Qg2+ {[%clk 0:00:20]}  Kh6 {[%clk 0:00:09]} 48. Qh2+ {[%clk 0:00:18]}  Kg5 {[%clk 0:00:08]} 49. Qg2+ {[%clk 0:00:17]}  Ng4 {[%clk 0:00:08]} 50. Qd5+ {[%clk 0:00:17]}  Kh4 {[%clk 0:00:07]} 51. c4 {[%clk 0:00:17]}  Rc7 {[%clk 0:00:06]} 52. c5 {[%clk 0:00:17]}  Ne5 {[%clk 0:00:06]} 53. Kd2 {[%clk 0:00:15]}  Rd7 {[%clk 0:00:03]} 54. Qxd7 {[%clk 0:00:14]}  Nxd7 {[%clk 0:00:04]} 55. c6 {[%clk 0:00:11]}  Nb6 {[%clk 0:00:04]} 0-1


[Site "https://www.chess.com"]

[Event "Titled Tuesday Blitz August 08 Late 2023"]
[White "Reprintsev, Alexander"]
[Black "Shtembuliak, Evgeny"]
[WhiteFideId "14100541"]
[BlackFideId "14113325"]
[WhiteElo "2492"]
[BlackElo "2824"]
[Result "0-1"]
[Round "3"]
[TimeControl "180+1"]
[Date "2023.08.08"]
[WhiteClock "0:00:03"]
[BlackClock "0:00:15"]
[Board "65"]

1. e4 {[%clk 0:03:00]}  g6 {[%clk 0:03:00]} 2. d4 {[%clk 0:02:59]}  Bg7 {[%clk 0:03:01]} 3. Nc3 {[%clk 0:02:59]}  d6 {[%clk 0:03:01]} 4. h4 {[%clk 0:02:57]}  h5 {[%clk 0:03:00]} 5. Nf3 {[%clk 0:02:56]}  Bg4 {[%clk 0:03:00]} 6. Be2 {[%clk 0:02:56]}  Bxf3 {[%clk 0:03:01]} 7. gxf3 {[%clk 0:02:55]}  Nc6 {[%clk 0:02:58]} 8. Be3 {[%clk 0:02:40]}  Nf6 {[%clk 0:02:25]} 9. d5 {[%clk 0:02:35]}  Ne5 {[%clk 0:02:21]} 10. Qd2 {[%clk 0:02:32]}  c6 {[%clk 0:02:20]} 11. O-O-O {[%clk 0:02:30]}  Qa5 {[%clk 0:02:14]} 12. Kb1 {[%clk 0:02:29]}  cxd5 {[%clk 0:02:05]} 13. Nxd5 {[%clk 0:02:27]}  Qxd2 {[%clk 0:02:04]} 14. Nxf6+ {[%clk 0:02:27]}  Bxf6 {[%clk 0:02:05]} 15. Rxd2 {[%clk 0:02:21]}  a6 {[%clk 0:02:03]} 16. f4 {[%clk 0:01:51]}  Ng4 {[%clk 0:02:02]} 17. Bb6 {[%clk 0:01:49]}  Bg7 {[%clk 0:01:49]} 18. f3 {[%clk 0:01:48]}  Nf6 {[%clk 0:01:49]} 19. f5 {[%clk 0:01:38]}  Bh6 {[%clk 0:01:43]} 20. Rd3 {[%clk 0:01:36]}  gxf5 {[%clk 0:01:39]} 21. exf5 {[%clk 0:01:35]}  Rg8 {[%clk 0:01:18]} 22. Rc3 {[%clk 0:01:29]}  Nd5 {[%clk 0:01:16]} 23. Rb3 {[%clk 0:01:25]}  Nxb6 {[%clk 0:01:11]} 24. Rxb6 {[%clk 0:01:25]}  Ra7 {[%clk 0:01:11]} 25. f4 {[%clk 0:01:20]}  Bxf4 {[%clk 0:01:00]} 26. Bxh5 {[%clk 0:01:19]}  Rg3 {[%clk 0:00:56]} 27. f6 {[%clk 0:01:08]}  e6 {[%clk 0:00:49]} 28. a4 {[%clk 0:00:58]}  Be5 {[%clk 0:00:47]} 29. Rf1 {[%clk 0:00:47]}  a5 {[%clk 0:00:39]} 30. Bf3 {[%clk 0:00:44]}  Bxf6 {[%clk 0:00:26]} 31. h5 {[%clk 0:00:44]}  Ke7 {[%clk 0:00:22]} 32. c3 {[%clk 0:00:37]}  d5 {[%clk 0:00:20]} 33. Bd1 {[%clk 0:00:34]}  Rh3 {[%clk 0:00:19]} 34. Ka2 {[%clk 0:00:28]}  Bg5 {[%clk 0:00:17]} 35. Kb3 {[%clk 0:00:25]}  Be3 {[%clk 0:00:17]} 36. Rb5 {[%clk 0:00:24]}  b6 {[%clk 0:00:17]} 37. Bf3 {[%clk 0:00:17]}  Rc7 {[%clk 0:00:15]} 38. Ka2 {[%clk 0:00:15]}  f5 {[%clk 0:00:14]} 39. Kb1 {[%clk 0:00:12]}  Kf6 {[%clk 0:00:14]} 40. b4 {[%clk 0:00:12]}  Rxc3 {[%clk 0:00:13]} 41. bxa5 {[%clk 0:00:12]}  bxa5 {[%clk 0:00:14]} 42. Rxa5 {[%clk 0:00:12]}  Bd4 {[%clk 0:00:14]} 43. Rb5 {[%clk 0:00:11]}  Rhxf3 {[%clk 0:00:14]} 44. Rxf3 {[%clk 0:00:03]}  Rxf3 {[%clk 0:00:15]} 0-1


[Site "https://www.chess.com"]

[Event "Titled Tuesday Blitz August 08 Late 2023"]
[White "Pakleza, Zbigniew"]
[Black "Jovic, Stanoje"]
[WhiteFideId "1119290"]
[BlackFideId "905020"]
[WhiteElo "2819"]
[BlackElo "2491"]
[Result "1-0"]
[Round "3"]
[TimeControl "180+1"]
[Date "2023.08.08"]
[WhiteClock "0:00:41"]
[BlackClock "0:00:00"]
[Board "66"]

1. d4 {[%clk 0:03:00]}  Nf6 {[%clk 0:02:59]} 2. Nf3 {[%clk 0:03:00]}  e6 {[%clk 0:02:58]} 3. Bf4 {[%clk 0:03:01]}  d5 {[%clk 0:02:57]} 4. e3 {[%clk 0:03:01]}  Bd6 {[%clk 0:02:57]} 5. Bg3 {[%clk 0:03:02]}  O-O {[%clk 0:02:56]} 6. Nbd2 {[%clk 0:03:03]}  b6 {[%clk 0:02:56]} 7. c3 {[%clk 0:03:03]}  c5 {[%clk 0:02:56]} 8. Ne5 {[%clk 0:03:03]}  Bxe5 {[%clk 0:02:52]} 9. Bxe5 {[%clk 0:02:57]}  Nc6 {[%clk 0:02:48]} 10. Bg3 {[%clk 0:02:56]}  a5 {[%clk 0:02:48]} 11. Bb5 {[%clk 0:02:52]}  Ne7 {[%clk 0:02:41]} 12. Qe2 {[%clk 0:02:49]}  Nf5 {[%clk 0:02:32]} 13. Bf4 {[%clk 0:02:45]}  Nd6 {[%clk 0:02:31]} 14. Bd3 {[%clk 0:02:43]}  a4 {[%clk 0:02:14]} 15. a3 {[%clk 0:02:31]}  Nfe4 {[%clk 0:02:08]} 16. O-O-O {[%clk 0:02:03]}  Nxd2 {[%clk 0:02:03]} 17. Rxd2 {[%clk 0:02:03]}  Ne4 {[%clk 0:01:53]} 18. Bxe4 {[%clk 0:01:58]}  dxe4 {[%clk 0:01:48]} 19. dxc5 {[%clk 0:01:58]}  Qf6 {[%clk 0:01:30]} 20. Bd6 {[%clk 0:01:41]}  Rd8 {[%clk 0:01:11]} 21. cxb6 {[%clk 0:01:36]}  Ba6 {[%clk 0:01:07]} 22. Qd1 {[%clk 0:01:26]}  e5 {[%clk 0:00:58]} 23. Bc7 {[%clk 0:01:20]}  Rd3 {[%clk 0:00:52]} 24. Rxd3 {[%clk 0:01:09]}  exd3 {[%clk 0:00:45]} 25. Qf3 {[%clk 0:01:08]}  Qxf3 {[%clk 0:00:34]} 26. gxf3 {[%clk 0:01:09]}  Bb7 {[%clk 0:00:30]} 27. Bxe5 {[%clk 0:00:56]}  f6 {[%clk 0:00:25]} 28. Bc7 {[%clk 0:00:52]}  Bxf3 {[%clk 0:00:22]} 29. Rg1 {[%clk 0:00:52]}  Kf7 {[%clk 0:00:17]} 30. Kd2 {[%clk 0:00:52]}  Be4 {[%clk 0:00:09]} 31. Rg4 {[%clk 0:00:52]}  Bb7 {[%clk 0:00:04]} 32. c4 {[%clk 0:00:47]}  Ra5 {[%clk 0:00:00]} 33. Rd4 {[%clk 0:00:41]} 1-0


[Site "https://www.chess.com"]